Cogmind - Beta 13 @@@ ROGUE MODE // 2024.06.10 @ 21:29:43 Player: Carpathian Result: Destroyed by H-55 Commando with Gauss Rifle Performance ------------- Evolutions (2) 1000 Regions Visited (4) 800 Robots Destroyed (47) 235 Value Destroyed (1378) 1378 Prototype IDs (0) 0 Alien Tech Used (0) 0 Bonus (0) 0 TOTAL SCORE: 3413 Bonus ------- None Cogmind --------- Core Integrity 0/550 Matter 300/300 Energy 36/100 System Corruption 1% Temperature Cool (81) Movement Treading (240) Ox1 Location -8/Materials Parts ------- > --- POWER (2) -------- (None) > --- PROPULSION (2) --- Light Treads > --- UTILITY (5) ------ Large Storage Unit Trap Scanner Signal Interpreter > --- WEAPON (2) ------- Heavy Particle Cannon > --- INVENTORY (15) --- Aluminum Leg Recoil Stabilizer Advanced ECM Suite Dynamic Insulation System Heavy Ion Cannon Peak State ------------ > --- POWER ------------ Light Nuclear Core > --- PROPULSION ------- Aluminum Leg Carbon-fiber Leg > --- UTILITY ---------- Large Storage Unit Trap Scanner Signal Interpreter Core Shielding > --- WEAPON ----------- High-powered Shotgun Katana > --- INVENTORY -------- Light Ion Engine Improved Ion Engine Aluminum Leg Recoil Stabilizer Advanced ECM Suite Dynamic Insulation System Heavy Particle Cannon Heavy Ion Cannon [Rating: 21] Favorites ----------- Power Light Ion Engine Engine Light Ion Engine Power Core Light Nuclear Core Propulsion Light Treads Treads Light Treads Leg Aluminum Leg Utility Signal Interpreter Device Trap Scanner Storage Large Storage Unit Processor Signal Interpreter Protection Hardened Light Armor Plating Weapon Assault Rifle Energy Gun Spread Laser Energy Cannon EM Pulse Cannon Ballistic Gun Assault Rifle Launcher Grenade Launcher Slashing Weapon Katana Special Melee Weapon Datajack Build | -11 -10 -9 -9 -8 ------- Run | Yrd Mat Mat Min Mat Slots Evolved 4 | . . 2 . 2 Power 1 | . . . . 1 Propulsion . | . . . . . Utility 3 | . . 2 . 1 Weapon . | . . . . . Parts Attached 51 | 6 6 15 . 24 Power 7 | 1 1 2 . 3 Engine 5 | 1 1 1 . 2 Core 2 | . . 1 . 1 Reactor . | . . . . . Propulsion 9 | 2 . 3 . 4 Treads 5 | . . 3 . 2 Leg 4 | 2 . . . 2 Wheel . | . . . . . Hover . | . . . . . Flight . | . . . . . Utility 7 | 1 1 2 . 3 Device 1 | . . . . 1 Storage 2 | 1 . 1 . . Processor 1 | . 1 . . . Hackware . | . . . . . Protection 3 | . . 1 . 2 Artifact . | . . . . . Weapon 28 | 2 4 8 . 14 Energy Gun 3 | . . 1 . 2 Energy Cannon 4 | . . . . 4 Ballistic Gun 13 | 2 2 4 . 5 Ballistic Cannon . | . . . . . Launcher 1 | . . 1 . . Special Weapon . | . . . . . Impact Weapon . | . . . . . Slashing Weapon 2 | . . . . 2 Piercing Weapon . | . . . . . Special Melee Weapon 5 | . 2 2 . 1 Unidentified Prototypes . | . . . . . Parts Lost 16 | . . 1 . 15 Power 3 | . . . . 3 Propulsion 4 | . . . . 4 Utility 3 | . . 1 . 2 Weapon 6 | . . . . 6 Highest Loss Streak 5 | . . 1 . 5 To Critical Strikes 1 | . . . . 1 Average Slot Usage (%) 79 | . 97 83 77 70 Engine 7 | . 14 9 . 3 Core 2 | . . 1 11 4 Treads 9 | . . 20 22 7 Leg 8 | . 28 1 . 4 Device 4 | . . . . 8 Storage 10 | . 14 11 11 9 Processor 10 | . 11 11 11 9 Protection 5 | . . 6 . 7 Energy Gun 3 | . . 5 11 3 Ballistic Gun 12 | . 26 13 . 6 Slashing Weapon 1 | . . . . 3 Special Melee Weapon 1 | . 1 1 . 1 Naked Turns . | . . . . . Heaviest Build 38 | 12 14 31 31 38 Greatest Support 40 | 20 20 40 40 40 Greatest Overweight (x) 10 | 1 . . . 10 Average Overweight (x) . | . . . . . Largest Inventory Capacity 15 | 8 8 15 15 15 Average Capacity 12 | 7 8 14 15 15 Most Carried 10 | 4 6 7 6 10 Average Carried 6 | 2 5 4 6 7 Final Capacity 15 | 8 8 15 15 15 Final Carried 6 | 4 6 6 6 5 Class Distribution -------------------- 88% | Mutant 11% | Scavenger-Mutant Dominant Class ---------------- Mutant | -10/Materials Mutant | -9/Materials Mutant | -9/Mines Mutant | -8/Materials Resources | -11 -10 -9 -9 -8 ----------- Run | Yrd Mat Mat Min Mat Matter Collected 1088 | 228 212 255 . 393 Remotely . | . . . . . Salvage Created 1503 | . 225 408 39 831 Parts 116 | . 22 30 6 58 Haulers Intercepted . | . . . . . Recyclers Shooed . | . . . . . Parts Field Recycled . | . . . . . Retrieved Matter . | . . . . . Parts Self-Destructed . | . . . . . Prevented . | . . . . . Kills | -11 -10 -9 -9 -8 ------- Run | Yrd Mat Mat Min Mat Combat Hostiles Destroyed 37 | . 8 10 4 15 Melee 7 | . . . . 7 Guns 22 | . 8 7 1 6 Cannons 1 | . . . . 1 AOE 7 | . . 3 3 1 Classes Destroyed 9 | . 3 2 . 4 Worker 3 | . 1 1 . 1 Builder 4 | . . . . 4 Recycler 1 | . . . . 1 Watcher 2 | . . . . 2 Swarmer 9 | . 5 . 4 . Grunt 18 | . 3 6 . 9 Brawler 1 | . . . . 1 Duelist 3 | . . 1 . 2 Sentry 6 | . . 3 . 3 Best Kill Streak 5 | . 3 4 4 5 Combat Bots Only 4 | . 3 4 4 4 Max Kills in Single Turn 4 | . 2 3 4 1 Gunslinging . | . . . . . Exploded 3 | . . 2 3 1 Melee 1 | . . . . 1 Uniques/NPCs Destroyed . | . . . . . Combat | -11 -10 -9 -9 -8 -------- Run | Yrd Mat Mat Min Mat Hostile Shots Fired 272 | . 36 56 . 180 Missed 76 | . 11 19 . 46 Damage Taken 3086 | . 243 489 20 2334 Core 664 | . 37 58 10 559 Absorbed by Shields . | . . . . . Redirected to Shielding 42 | . . . . 42 Core Remaining (%) 89 | 100 85 . 83 . Volleys Fired 106 | . 24 23 1 58 Largest 2 | . 2 2 2 2 Hottest 105 | . 40 95 95 105 Shots Fired 179 | . 48 46 2 83 Gun 159 | . 48 44 1 66 Cannon 17 | . . . . 17 Launcher 3 | . . 2 1 . Special . | . . . . . Kinetic 128 | . 48 30 . 50 Thermal 41 | . . 14 1 26 Explosive 3 | . . 2 1 . Electromagnetic 7 | . . . . 7 Robot Hit Streak 8 | . 8 8 1 5 Robot Miss Streak 8 | . 2 5 2 8 Penetration Max . | . . . . . Secondary Targets 3 | . 2 1 . . Max Gunslinging Chain 1 | . 1 1 . . Shots Hit Robots 157 | . 31 35 1 90 Core Hits 93 | . 12 31 7 43 Critical Kills 2 | . 1 . . 1 Critical Parts Destroyed . | . . . . . Critical Strikes 7 | . 1 . . 6 Burn 2 | . . . . 2 Destroy 2 | . 1 . . 1 Sever 3 | . . . . 3 Melee Attacks 33 | . . . . 33 Impact . | . . . . . Slashing 33 | . . . . 33 Piercing . | . . . . . Sneak Attacks 5 | . . . . 5 Combat Hostiles . | . . . . . Follow-up Attacks . | . . . . . Damage Inflicted 3367 | . 367 582 156 2262 Guns 1666 | . 367 428 15 856 Cannons 366 | . . . . 366 Explosions 377 | . . 154 141 82 Melee 952 | . . . . 952 Ramming 6 | . . . . 6 Kinetic 1302 | . 367 260 . 675 Thermal 653 | . . 168 15 470 Explosive 295 | . . 154 141 . Electromagnetic 159 | . . . . 159 Impact . | . . . . . Slashing 952 | . . . . 952 Piercing . | . . . . . Highest Corruption 1 | . . . . 1 Average Corruption 1 | . . . . 1 Corruption Purged . | . . . . . Corruption Blocked . | . . . . . Effects 4 | . . . . 4 Matter Fused 1 | . . . . 1 Heat Flow Errors 1 | . . . . 1 Data Loss (minor) 1 | . . . . 1 Misfires 1 | . . . . 1 Overload Shots . | . . . . . Overflow Damage 53 | . . . . 53 Projectiles . | . . . . . Explosions 11 | . . . . 11 Melee 42 | . . . . 42 Knockbacks 1 | . . . . 1 Impact 1 | . . . . 1 Kinetic . | . . . . . Secondary . | . . . . . Self-Inflicted Damage 71 | . . . 20 51 Shots 2 | . . . 1 1 Rammed 1 | . . . . 1 Targets Rammed 1 | . . . . 1 Kicked . | . . . . . Crushed . | . . . . . Highest Temperature 409 | . 6 163 30 409 Average Temperature 108 | . 6 67 17 129 Received Heat Transfer 1272 | . 72 210 . 990 Effects 6 | . . . . 6 Shutdowns 1 | . . . . 1 Energy Bleed 1 | . . . . 1 Interference 3 | . . . . 3 Short Circuit 1 | . . . . 1 Siege Activations . | . . . . . Robots Corrupted . | . . . . . Combat Hostiles . | . . . . . Parts Fried 1 | . . . . 1 Impact Corruptions . | . . . . . Robots Melted . | . . . . . Combat Hostiles . | . . . . . Parts Melted . | . . . . . Heat Transferred 1083 | . . 210 20 853 Parts Sabotaged . | . . . . . Parts Stolen . | . . . . . Parts Stripped . | . . . . . Power Chain Reactions 1 | . . . . 1 Alert | -11 -10 -9 -9 -8 ------- Run | Yrd Mat Mat Min Mat Peak Influence 222 | . 222 209 191 222 Initial 81 | . . 9 81 74 Average 88 | . 96 76 191 100 Maximum Alert Level 1 | . 1 1 . 1 Low Security (%) 93 | 100 93 95 100 91 Level 1 6 | . 6 4 . 8 Level 2 . | . . . . . Level 3 . | . . . . . Level 4 . | . . . . . Level 5 . | . . . . . High Security . | . . . . . Max Security . | . . . . . Squads Dispatched 6 | . 4 . . 2 Investigation 3 | . 2 . . 1 Extermination . | . . . . . Reinforcement 3 | . 2 . . 1 Assault . | . . . . . Garrison . | . . . . . Intercept . | . . . . . Searches Triggered . | . . . . . Construction Impeded . | . . . . . Haulers Reinforced . | . . . . . Active Scanning Responses . | . . . . . Cargo Convoy Interrupts . | . . . . . Stealth | -11 -10 -9 -9 -8 --------- Run | Yrd Mat Mat Min Mat Distress Signals 4 | . . . . 4 Communications Jammed . | . . . . . Distress Signals . | . . . . . Times Spotted 51 | . 14 10 . 27 Peak Tracking Total 7 | . 3 4 . 7 Tactical Retreats 1 | . . . . 1 Traps | -11 -10 -9 -9 -8 ------- Run | Yrd Mat Mat Min Mat Traps Triggered 3 | . 1 . . 2 Indirectly . | . . . . . Trap Hack Attempts . | . . . . . Triggered . | . . . . . Disarmed . | . . . . . Reprogrammed . | . . . . . Reused . | . . . . . Traps Extracted . | . . . . . Installed . | . . . . . Triggered 1 | . . . . 1 Machines | -11 -10 -9 -9 -8 ---------- Run | Yrd Mat Mat Min Mat Machines Disabled 2 | . . 1 1 . Max in Single Turn 1 | . . 1 1 . Machines Repaired . | . . . . . Machines Dismantled . | . . . . . Machines Sabotaged . | . . . . . Overloaded Fab Kills . | . . . . . Hacking | -11 -10 -9 -9 -8 --------- Run | Yrd Mat Mat Min Mat Machines Accessed 3 | . 1 2 . . Terminals 3 | . 1 2 . . Fabricators . | . . . . . Repair Stations . | . . . . . Recycling Units . | . . . . . Scanalyzers . | . . . . . Garrison Access . | . . . . . Total Hacks 8 | . 3 5 . . Successful 5 | . 3 2 . . Failed 3 | . . 3 . . Catastrophic . | . . . . . Database Lockouts . | . . . . . Manual . | . . . . . Terminals 8 | . 3 5 . . Fabricators . | . . . . . Repair Stations . | . . . . . Recycling Units . | . . . . . Scanalyzers . | . . . . . Garrison Access . | . . . . . Terminal Hacks 5 | . 3 2 . . Record 5 | . 3 2 . . Fabricator Hacks . | . . . . . Repair Station Hacks . | . . . . . Recycling Unit Hacks . | . . . . . Scanalyzer . | . . . . . Garrison Access Hacks . | . . . . . Unauthorized Hacks . | . . . . . Terminals . | . . . . . Fabricators . | . . . . . Repair Stations . | . . . . . Recycling Units . | . . . . . Scanalyzers . | . . . . . Garrison Access . | . . . . . Data Cores Recovered . | . . . . . Used . | . . . . . Hacking Detections 2 | . 1 1 . . Full Trace Events 1 | . 1 . . . Feedback Events . | . . . . . Feedback Blocked . | . . . . . Robot Schematics Acquired . | . . . . . Robots Built . | . . . . . Authchips . | . . . . . Time . | . . . . . Total Robot Build Rating . | . . . . . Part Schematics Acquired . | . . . . . Parts Built . | . . . . . Authchips . | . . . . . Time . | . . . . . Total Part Build Rating . | . . . . . Parts Repaired . | . . . . . Time . | . . . . . Parts Recycled . | . . . . . Recycled Matter . | . . . . . Retrieved Matter . | . . . . . Retrieved Components . | . . . . . Parts Scanalyzed . | . . . . . Part Schematics Acquired . | . . . . . Parts Damaged . | . . . . . Bothacking | -11 -10 -9 -9 -8 ------------ Run | Yrd Mat Mat Min Mat Used RIF Installer . | . . . . . Robots Hacked . | . . . . . Non-combat . | . . . . . Combat . | . . . . . Robot Hacks Applied . | . . . . . Relay Couplers Released . | . . . . . Fabnet Peak Effective % . | . . . . . Robots Rewired . | . . . . . Allies Hacked . | . . . . . Hacks Repelled . | . . . . . Allies | -11 -10 -9 -9 -8 -------- Run | Yrd Mat Mat Min Mat Total Allies . | . . . . . Largest Group . | . . . . . Highest-Rated Group . | . . . . . Highest-Rated Ally . | . . . . . Total Orders . | . . . . . Ally Attacks . | . . . . . Total Damage . | . . . . . Kills . | . . . . . Allies Corrupted . | . . . . . Allies Melted . | . . . . . Intel | -11 -10 -9 -9 -8 ------- Run | Yrd Mat Mat Min Mat Robot Analysis Total . | . . . . . Derelict Logs Recovered . | . . . . . Drone Launches . | . . . . . Drone Recoveries . | . . . . . Exploration | -11 -10 -9 -9 -8 ------------- Run | Yrd Mat Mat Min Mat Turns Passed 1992 | 112 414 505 15 946 Spaces Moved 863 | 71 230 247 8 307 Core 16 | 7 . . . 9 Treads 445 | . . 216 8 221 Legs 402 | 64 230 31 . 77 Wheels . | . . . . . Hover . | . . . . . Flight . | . . . . . Fastest Speed 50 | 50 120 120 160 160 Average Speed 162 | 115 120 154 160 211 Slowest Speed 550 | 120 120 160 160 550 Overloaded Moves . | . . . . . Propulsion Burnouts . | . . . . . Robots Hopped . | . . . . . Cave-ins Triggered . | . . . . . Exploration Rate (%) 20 | 4 29 25 9 35 Regions Visited 4 Branch Regions 1 Pre-discovered Areas . | . . . . . Known Exits Taken 3 | . 1 1 1 . Unknown Exits Taken 1 | 1 . . . . Scrap Searched . | . . . . . Spaces Dug . | . . . . . Terrain Destroyed 30 | . . 13 5 12 Melee . | . . . . . Projectile 2 | . . . . 2 AOE 28 | . . 13 5 10 Terrain Rammed . | . . . . . Walls Destroyed . | . . . . . Machines Disabled . | . . . . . Actions | -11 -10 -9 -9 -8 --------- Run | Yrd Mat Mat Min Mat Total 1221 | 101 320 320 8 472 Wait 112 | 15 56 19 . 22 Move 859 | 70 229 246 7 307 Hop . | . . . . . Pick Up 43 | 10 4 9 . 20 Fast Attach . | . . . . . Attach 24 | 6 1 1 . 16 Detach . | . . . . . Swap 27 | . 5 14 . 8 Drop 16 | . 1 8 . 7 Fire 106 | . 24 23 1 58 Melee 33 | . . . . 33 Ram . | . . . . . Kick . | . . . . . Crush 1 | . . . . 1 Escape Stasis . | . . . . . Rewire . | . . . . . Trap . | . . . . . Miscellaneous . | . . . . . Route ------- -11/Scrapyard -10/Materials -9/Materials -9/Mines -8/Materials History --------- Turn | Location | Event 30 | -11/Scrapyard | Discovered new exit (range 15) 113 | -11/Scrapyard | Entered Materials 310 | -10/Materials | Build established: Mutant 499 | -10/Materials | Discovered new exit (range 15) 524 | -10/Materials | Identified exit to Materials 527 | -10/Materials | Entered another Materials area 527 | -9/Materials | Evolved 2 slots: Utility x2 928 | -9/Materials | Discovered new exit (range 15) 1030 | -9/Materials | Identified exit to Mines 1032 | -9/Materials | Entered Mines 1032 | -9/Mines | Discovered new exit (range 8) 1045 | -9/Mines | Identified exit to Materials 1047 | -9/Mines | Entered Materials 1047 | -8/Materials | Evolved 2 slots: Power x1, Utility x1 1634 | -8/Materials | Lost 4 parts (1n1u2w) 1888 | -8/Materials | Core integrity fell below 50% 1891 | -8/Materials | Lost 5 parts (1p1n3w) 1955 | -8/Materials | Core integrity fell below 20% 1993 | -8/Materials | Destroyed by H-55 Commando with Gauss Rifle Last Messages --------------- 01943_ R-06 Scavenger collects Terrain Scanner. 01946_ R-06 Scavenger collects Wheel. 01949_ R-06 Scavenger collects Aluminum Leg. 01950_ Acquired 5 matter. 01953_ R-06 Scavenger collects Structural Scanner. 01956_ Acquired 10 matter. 01956_ Critical hit (Burn: +37). 01956_ K-01 Serf collects debris. 01971_ G-47 Trooper destroyed. 01972_ Imp. Ion Engine destroyed. 01974_ K-01 Serf collects debris. 01977_ System corrupted: Component data lost. 01978_ Slug penetrates G-47 Trooper. 01981_ Penetrated by Slug. 01984_ Slug penetrates Wall. 01987_ Acquired 10 matter. 01987_ Penetrated by Slug. 01987_ Katana destroyed. 01991_ Critical hit (Burn: +37). 01993_ Penetrated by Slug. Map ----- +----------------------------------------------------+ | ?????????????????????????????????????# #???# | | ?????????????????????????????????????########???# | | ??????????????????????????????????????########### | | ????????????????????????????????? % | | ????????????????????????????????????# | | ????????????????????????????????????# """ """ | | ???????????????????????????????????????"Y" """ | | ????????????????????????????????????? """ | | ????????????????????????????????????? | | ???????????????????????????????????? [ | | ???????????????????????????????????######### | | ???????????????????????????????????????????# | | ???????????????????????????????????????????###+### | | ????????????????????????????????############= | | ????????????????????????????????+! |/ | | ????????????????????????????????##=#########! """ | | ?????????????????????????????????#%#???????# """ | | ???????????????????????######????# #???????#! """ | | ??????????????????????##!!!!##???#!#???????# | | ??????????????????????#! !#####%#???????####### | | ??????????????????#???# ##[ !#?????????????? | | ????????????#+#####T### #???# ##########???????? | | ????????????# ==|#?### ### """ #???????? | | ????????????# m h* g#?# # """ #???????? | | ????????????# =! ### # """ #???????? | | ????????????# %!@% + #???????? | | ????????????# ########=### # #???????? | | ????????????# ?# =#=### # #???????? | | ?????????? + #=#=##############???????? | | ????????????#### # *#%#%#????????????????????? | | ?????????????????# [ #!###????????????????????? | | ?????????????????# #a##?????????????????????? | | ?????????????????# #%##?????????????????????? | | ?????????????????######## ##?????????????????????? | | ??????????????????????? ##?????????????????????? | | ???????????????????????## #??????????????????????? | | ???????????????????????## #??????????????????????? | | ????????????????????????# #??????????????????????? | | ????????????????????????? ???????????????????????? | | ????????????????????????? ???????????????????????? | | ????????????????????????? ???????????????????????? | | ????????????????????????? ???????????????????????? | | ????????????????????????? ???????????????????????? | | ????????????????????????? ???????????????????????? | | ?????????????????????????#???????????????????????? | | ?????????????????????????????????????????????????? | | ?????????????????????????????????????????????????? | | ?????????????????????????????????????????????????? | | ?????????????????????????????????????????????????? | | ?????????????????????????????????????????????????? | +----------------------------------------------------+ Best States ------------- Heat Dissipation 31 Energy Generation 14 Energy Capacity 265 Matter Stores 300 Matter Capacity 300 Sight Range 16 Terrain Scan Density 10 Armor Coverage 150 Core Shielding 20 Evasion (%) 55 Recoil Reduction 2 Item Schematics ----------------- None Robot Schematics ------------------ None Fabricated ------------ Nothing Alien Tech Used ----------------- None Achievements -------------- None Challenges ------------ None Game ------ Seed SingularitySingularityCharge Manual? 0 Play Time 00:15:52 Cumulative 19.7 hours Start 2024.06.10 @ 21:16:04 End 2024.06.10 @ 21:29:43 Sessions 1 Manual Loads 0 Difficulty Rogue Special Mode None Game No. 111 Rogue 111 Adventurer 0 Explorer 0 Win Type - Total 0 Types 0/0/0/0/0/0/0/0/0 Lore% 7 Gallery% 22 Achievement% 16 Wizard Run 0 Options --------- Layout 0 ASCII 0 Keyboard 0 Movement Arrows Keybinds 0 Fullscreen 2 Font 24/Cog Map View 76x50 Zoom Use 0% Tactical HUD 1 Map Filters NONE Filters NONE Steam 1 RUN: 3e1fcc3f-6752-4235-9cfd-70277d678c81